[Event "*** SCC Grand Prix: Titled Tuesday Blitz"]
[Site "Chess.com"]
[Date "2020.06.02"]
[Round "8"]
[White "SergeyKarjakin"]
[Black "Alexander_Zubov"]
[Result "1-0"]
[WhiteElo "2972"]
[BlackElo "2972"]
[TimeControl "180+1"]
[EndTime "11:36:51 PDT"]
[Termination "SergeyKarjakin won by resignation"]

1. e4 {[%clk 0:03:00.9]} 1... c5 {[%clk 0:02:58.6]} 2. Nf3 {[%clk 0:03:00.2]}
2... d6 {[%clk 0:02:58.7]} 3. d4 {[%clk 0:03:00.2]} 3... cxd4 {[%clk 0:02:58.8]}
4. Nxd4 {[%clk 0:03:01.1]} 4... Nf6 {[%clk 0:02:58.5]} 5. Nc3 {[%clk 0:03:01.7]}
5... a6 {[%clk 0:02:58.5]} 6. Bd3 {[%clk 0:03:01.6]} 6... Nc6 {[%clk 0:02:56.4]}
7. Nxc6 {[%clk 0:03:00.1]} 7... bxc6 {[%clk 0:02:56.4]} 8. b3 {[%clk 0:02:57.8]}
8... e5 {[%clk 0:02:53.9]} 9. Na4 {[%clk 0:02:48.3]} 9... d5 {[%clk 0:02:42.5]}
10. exd5 {[%clk 0:02:47.9]} 10... cxd5 {[%clk 0:02:38.4]} 11. O-O {[%clk
0:02:38.8]} 11... Be7 {[%clk 0:02:25.2]} 12. Re1 {[%clk 0:02:33.3]} 12... e4
{[%clk 0:02:19.4]} 13. Be2 {[%clk 0:02:25.3]} 13... O-O {[%clk 0:02:18.6]} 14.
Be3 {[%clk 0:02:25.8]} 14... Be6 {[%clk 0:02:16.4]} 15. Nc5 {[%clk 0:02:12.1]}
15... Qc8 {[%clk 0:01:50.5]} 16. b4 {[%clk 0:02:07]} 16... Rd8 {[%clk
0:01:45.7]} 17. Bd4 {[%clk 0:02:01.2]} 17... Nd7 {[%clk 0:01:38.3]} 18. Nxd7
{[%clk 0:01:44.5]} 18... Rxd7 {[%clk 0:01:31]} 19. c3 {[%clk 0:01:41.6]} 19...
Qd8 {[%clk 0:01:24.4]} 20. a4 {[%clk 0:01:39]} 20... Bf6 {[%clk 0:01:17.5]} 21.
a5 {[%clk 0:01:30.3]} 21... Bxd4 {[%clk 0:01:16.4]} 22. Qxd4 {[%clk 0:01:31.2]}
22... Qc8 {[%clk 0:01:10.2]} 23. Rab1 {[%clk 0:01:00.5]} 23... Rc7 {[%clk
0:01:07.4]} 24. Rb3 {[%clk 0:01:00.5]} 24... Qd7 {[%clk 0:00:57.3]} 25. Ra1
{[%clk 0:00:58.7]} 25... Qe7 {[%clk 0:00:46.4]} 26. g3 {[%clk 0:00:53.9]} 26...
h6 {[%clk 0:00:42.7]} 27. b5 {[%clk 0:00:47.7]} 27... axb5 {[%clk 0:00:41.3]}
28. Rxb5 {[%clk 0:00:48.6]} 28... Qf6 {[%clk 0:00:32.4]} 29. Qxf6 {[%clk
0:00:39.5]} 29... gxf6 {[%clk 0:00:31.8]} 30. Ra3 {[%clk 0:00:40.3]} 30... Rc6
{[%clk 0:00:23.1]} 31. a6 {[%clk 0:00:37.4]} 31... Kg7 {[%clk 0:00:19.3]} 32. a7
{[%clk 0:00:27]} 32... Rc7 {[%clk 0:00:18.7]} 33. Rba5 {[%clk 0:00:27.2]} 33...
f5 {[%clk 0:00:18.7]} 34. f4 {[%clk 0:00:27]} 34... exf3 {[%clk 0:00:15.8]} 35.
Bxf3 {[%clk 0:00:26.1]} 35... Kf6 {[%clk 0:00:16.2]} 36. Kf2 {[%clk 0:00:24.8]}
36... Ke5 {[%clk 0:00:16.4]} 37. Ke3 {[%clk 0:00:24.9]} 37... Kd6 {[%clk
0:00:16.1]} 38. R5a4 {[%clk 0:00:23]} 38... Ke5 {[%clk 0:00:15.5]} 39. c4 {[%clk
0:00:21.3]} 39... Rc5 {[%clk 0:00:12.7]} 40. cxd5 {[%clk 0:00:18.4]} 40... Bxd5
{[%clk 0:00:12.7]} 41. Ra5 {[%clk 0:00:18.8]} 1-0

[Event "*** SCC Grand Prix: Titled Tuesday Blitz"]
[Site "Chess.com"]
[Date "2020.06.02"]
[Round "8"]
[White "Salem-AR"]
[Black "francyIM"]
[Result "0-1"]
[WhiteElo "3010"]
[BlackElo "2686"]
[TimeControl "180+1"]
[EndTime "11:36:51 PDT"]
[Termination "francyIM won on time"]

1. Nf3 {[%clk 0:03:00.9]} 1... c5 {[%clk 0:02:57.6]} 2. g3 {[%clk 0:03:00.5]}
2... Nc6 {[%clk 0:02:57.6]} 3. Bg2 {[%clk 0:03:00.6]} 3... g6 {[%clk 0:02:58.1]}
4. O-O {[%clk 0:02:55.6]} 4... Bg7 {[%clk 0:02:58.2]} 5. c4 {[%clk 0:02:55.4]}
5... d6 {[%clk 0:02:57.6]} 6. Nc3 {[%clk 0:02:54.9]} 6... Bf5 {[%clk 0:02:57.3]}
7. b3 {[%clk 0:02:49.6]} 7... Qd7 {[%clk 0:02:56.3]} 8. Re1 {[%clk 0:02:45.5]}
8... h5 {[%clk 0:02:54.8]} 9. Bb2 {[%clk 0:02:43.1]} 9... Bh3 {[%clk 0:02:53.4]}
10. Bxh3 {[%clk 0:01:12.8]} 10... Qxh3 {[%clk 0:02:54.3]} 11. Ng5 {[%clk
0:01:13.1]} 11... Qg4 {[%clk 0:01:54.4]} 12. h4 {[%clk 0:01:13]} 12... Be5
{[%clk 0:01:45.6]} 13. e3 {[%clk 0:01:06.7]} 13... Nf6 {[%clk 0:01:39.8]} 14.
Qxg4 {[%clk 0:00:44.1]} 14... hxg4 {[%clk 0:01:38.1]} 15. Rad1 {[%clk
0:00:36.6]} 15... O-O {[%clk 0:01:33.2]} 16. Kg2 {[%clk 0:00:27.1]} 16... a6
{[%clk 0:01:30.7]} 17. f4 {[%clk 0:00:26]} 17... gxf3+ {[%clk 0:01:29.4]} 18.
Nxf3 {[%clk 0:00:26.7]} 18... Bxc3 {[%clk 0:01:26.6]} 19. Bxc3 {[%clk
0:00:26.6]} 19... b5 {[%clk 0:01:26.9]} 20. Bxf6 {[%clk 0:00:26.5]} 20... exf6
{[%clk 0:01:27.8]} 21. d3 {[%clk 0:00:23.9]} 21... Rfd8 {[%clk 0:01:26]} 22. Ng1
{[%clk 0:00:20.6]} 22... d5 {[%clk 0:01:24.7]} 23. Ne2 {[%clk 0:00:14.2]} 23...
dxc4 {[%clk 0:01:22.8]} 24. dxc4 {[%clk 0:00:14.5]} 24... bxc4 {[%clk
0:01:21.5]} 25. bxc4 {[%clk 0:00:14.5]} 25... Ne5 {[%clk 0:01:21.5]} 26. Nf4
{[%clk 0:00:10.2]} 26... Nxc4 {[%clk 0:01:19.9]} 27. Nd5 {[%clk 0:00:09.6]}
27... Kg7 {[%clk 0:01:19.2]} 28. e4 {[%clk 0:00:09.8]} 28... Rd6 {[%clk
0:01:17.1]} 29. Rc1 {[%clk 0:00:09.6]} 29... Ne5 {[%clk 0:01:17.2]} 30. Re2
{[%clk 0:00:10]} 30... c4 {[%clk 0:01:17.1]} 31. Rb1 {[%clk 0:00:08.6]} 31...
Rc8 {[%clk 0:01:13.5]} 32. Nc3 {[%clk 0:00:08.1]} 32... Rd3 {[%clk 0:01:10.3]}
33. Rc2 {[%clk 0:00:08.7]} 33... Ng4 {[%clk 0:01:09.1]} 34. Kh3 {[%clk
0:00:08.4]} 34... Ne3 {[%clk 0:01:06.7]} 35. Rcc1 {[%clk 0:00:09]} 35... f5
{[%clk 0:01:05.3]} 36. Rb7 {[%clk 0:00:07.6]} 36... f4 {[%clk 0:01:00.1]} 37. e5
{[%clk 0:00:02.5]} 37... Re8 {[%clk 0:00:54.5]} 38. Ne4 {[%clk 0:00:02.6]} 38...
Rxe5 {[%clk 0:00:48.6]} 39. Ng5 {[%clk 0:00:03.3]} 39... Rf5 {[%clk 0:00:47.9]}
40. Ne6+ {[%clk 0:00:02.3]} 40... Kh7 {[%clk 0:00:33.2]} 41. Nxf4 {[%clk
0:00:03.2]} 41... Ra3 {[%clk 0:00:28.9]} 42. Re1 {[%clk 0:00:02.8]} 42... Rxf4
{[%clk 0:00:22.1]} 0-1

[Event "*** SCC Grand Prix: Titled Tuesday Blitz"]
[Site "Chess.com"]
[Date "2020.06.02"]
[Round "8"]
[White "Manukyan_Artak"]
[Black "GelmanAlexander"]
[Result "0-1"]
[WhiteElo "2348"]
[BlackElo "2543"]
[TimeControl "180+1"]
[EndTime "11:36:51 PDT"]
[Termination "GelmanAlexander won by checkmate"]

1. e4 {[%clk 0:03:00.9]} 1... c5 {[%clk 0:02:59.4]} 2. Nf3 {[%clk 0:03:00.9]}
2... e6 {[%clk 0:02:59.8]} 3. c3 {[%clk 0:03:01]} 3... d5 {[%clk 0:02:59.9]} 4.
e5 {[%clk 0:03:01]} 4... Nc6 {[%clk 0:02:59.6]} 5. d4 {[%clk 0:03:01.5]} 5...
Bd7 {[%clk 0:02:59.6]} 6. a3 {[%clk 0:03:01.2]} 6... f6 {[%clk 0:02:58.6]} 7.
Bd3 {[%clk 0:02:55.7]} 7... fxe5 {[%clk 0:02:58.6]} 8. Nxe5 {[%clk 0:02:53.8]}
8... Nxe5 {[%clk 0:02:58.3]} 9. dxe5 {[%clk 0:02:53.1]} 9... Ne7 {[%clk
0:02:48.3]} 10. O-O {[%clk 0:02:40.9]} 10... c4 {[%clk 0:02:47.8]} 11. Bc2
{[%clk 0:02:39.8]} 11... Qc7 {[%clk 0:02:47.9]} 12. Qh5+ {[%clk 0:02:21]} 12...
g6 {[%clk 0:02:47.7]} 13. Qg5 {[%clk 0:02:20.9]} 13... O-O-O {[%clk 0:02:27.2]}
14. Nd2 {[%clk 0:02:10.2]} 14... Nc6 {[%clk 0:01:58.1]} 15. Nf3 {[%clk
0:02:07.2]} 15... Be7 {[%clk 0:01:58.5]} 16. Qg3 {[%clk 0:02:04.2]} 16... g5
{[%clk 0:01:39.5]} 17. Re1 {[%clk 0:01:56.7]} 17... Rdg8 {[%clk 0:01:36.9]} 18.
Nd4 {[%clk 0:01:40.6]} 18... h5 {[%clk 0:01:27.6]} 19. Nxc6 {[%clk 0:01:34.4]}
19... Bxc6 {[%clk 0:01:26.1]} 20. Be3 {[%clk 0:01:19.8]} 20... g4 {[%clk
0:01:23.6]} 21. Bd4 {[%clk 0:01:14]} 21... h4 {[%clk 0:01:22.4]} 22. Qe3 {[%clk
0:01:12.3]} 22... Bg5 {[%clk 0:01:21.1]} 23. Qe2 {[%clk 0:01:08.6]} 23... Bf4
{[%clk 0:01:12.6]} 24. b4 {[%clk 0:00:53.5]} 24... cxb3 {[%clk 0:01:04.8]} 25.
Bxb3 {[%clk 0:00:53.1]} 25... a6 {[%clk 0:01:02.9]} 26. a4 {[%clk 0:00:50.5]}
26... Bxh2+ {[%clk 0:00:47.4]} 27. Kxh2 {[%clk 0:00:47.4]} 27... g3+ {[%clk
0:00:47.8]} 28. Kg1 {[%clk 0:00:47.3]} 28... h3 {[%clk 0:00:46.6]} 29. f4 {[%clk
0:00:23.9]} 29... Qh7 {[%clk 0:00:41.6]} 30. Bc2 {[%clk 0:00:20.9]} 30... Qh4
{[%clk 0:00:38]} 31. f5 {[%clk 0:00:20]} 31... hxg2 {[%clk 0:00:32.7]} 32. Qxg2
{[%clk 0:00:20.1]} 32... Qg5 {[%clk 0:00:26.4]} 33. Be3 {[%clk 0:00:17.3]} 33...
Qg4 {[%clk 0:00:22.7]} 34. Bd1 {[%clk 0:00:12.6]} 34... Qxf5 {[%clk 0:00:21.5]}
35. Rf1 {[%clk 0:00:12.5]} 35... Qd3 {[%clk 0:00:17.4]} 36. Bd4 {[%clk
0:00:08.8]} 36... Rh2 {[%clk 0:00:15.6]} 37. Qf3 {[%clk 0:00:09.3]} 37... Qh7
{[%clk 0:00:14.4]} 38. Bc2 {[%clk 0:00:07.5]} 38... Qh3 {[%clk 0:00:13.7]} 39.
Be4 {[%clk 0:00:06.5]} 39... dxe4 {[%clk 0:00:12.9]} 40. Qf7 {[%clk 0:00:06.3]}
40... Qg2# {[%clk 0:00:12.8]} 0-1

[Event "*** SCC Grand Prix: Titled Tuesday Blitz"]
[Site "Chess.com"]
[Date "2020.06.02"]
[Round "8"]
[White "rynos0411"]
[Black "NemtsevIgor"]
[Result "1-0"]
[WhiteElo "2432"]
[BlackElo "2290"]
[TimeControl "180+1"]
[EndTime "11:36:51 PDT"]
[Termination "rynos0411 won on time"]

1. d4 {[%clk 0:03:00.9]} 1... g6 {[%clk 0:02:58.3]} 2. c4 {[%clk 0:02:59.8]}
2... Bg7 {[%clk 0:02:57.7]} 3. Nc3 {[%clk 0:03:00.1]} 3... Nf6 {[%clk
0:02:57.2]} 4. e4 {[%clk 0:02:59.2]} 4... d6 {[%clk 0:02:57.3]} 5. h3 {[%clk
0:02:59.7]} 5... O-O {[%clk 0:02:57.1]} 6. Be3 {[%clk 0:03:00.4]} 6... e5 {[%clk
0:02:48.5]} 7. d5 {[%clk 0:02:59.9]} 7... Nh5 {[%clk 0:02:42.7]} 8. Be2 {[%clk
0:02:45.7]} 8... Nf4 {[%clk 0:02:42.4]} 9. Bf3 {[%clk 0:02:45.6]} 9... Na6
{[%clk 0:02:33.1]} 10. g3 {[%clk 0:02:43.4]} 10... Nh5 {[%clk 0:02:15.5]} 11.
Bxh5 {[%clk 0:02:41.2]} 11... gxh5 {[%clk 0:02:15.8]} 12. Qxh5 {[%clk
0:02:42.1]} 12... f5 {[%clk 0:02:05.8]} 13. Nge2 {[%clk 0:02:16.4]} 13... Nb4
{[%clk 0:01:47.9]} 14. O-O-O {[%clk 0:02:11.7]} 14... f4 {[%clk 0:01:39.1]} 15.
gxf4 {[%clk 0:02:09.2]} 15... exf4 {[%clk 0:01:39.4]} 16. Bd4 {[%clk 0:02:08]}
16... Bxd4 {[%clk 0:01:13.8]} 17. Nxd4 {[%clk 0:01:44.6]} 17... Qf6 {[%clk
0:01:13.8]} 18. Ndb5 {[%clk 0:01:24.4]} 18... Bd7 {[%clk 0:00:57.6]} 19. a3
{[%clk 0:01:18.4]} 19... a6 {[%clk 0:00:40.5]} 20. Nxc7 {[%clk 0:01:13.1]} 20...
Rac8 {[%clk 0:00:39.8]} 21. Ne6 {[%clk 0:00:46.4]} 21... Bxe6 {[%clk 0:00:39.9]}
22. dxe6 {[%clk 0:00:45.2]} 22... Rxc4 {[%clk 0:00:39.7]} 23. axb4 {[%clk
0:00:22.9]} 23... Rxc3+ {[%clk 0:00:39.5]} 24. Kb1 {[%clk 0:00:23.1]} 24... Rb3
{[%clk 0:00:36.4]} 25. Rd2 {[%clk 0:00:22.4]} 25... Qxe6 {[%clk 0:00:32.6]} 26.
Rg1+ {[%clk 0:00:21.5]} 26... Kh8 {[%clk 0:00:32.3]} 27. Qg5 {[%clk 0:00:18.7]}
27... Qf6 {[%clk 0:00:28.4]} 28. Qd5 {[%clk 0:00:11.8]} 28... Rxb4 {[%clk
0:00:26.1]} 29. f3 {[%clk 0:00:09.7]} 29... Rb5 {[%clk 0:00:25.4]} 30. Qxd6
{[%clk 0:00:06.3]} 30... Rxb2+ {[%clk 0:00:25.3]} 31. Kc1 {[%clk 0:00:06.2]}
31... Qc3+ {[%clk 0:00:24.6]} 32. Kd1 {[%clk 0:00:06.6]} 32... Rxd2+ {[%clk
0:00:23.6]} 33. Qxd2 {[%clk 0:00:07.5]} 33... Qxf3+ {[%clk 0:00:23.2]} 34. Ke1
{[%clk 0:00:05.8]} 34... Qxe4+ {[%clk 0:00:22.3]} 35. Kf1 {[%clk 0:00:06.3]}
35... Qc4+ {[%clk 0:00:19.8]} 36. Kf2 {[%clk 0:00:06.3]} 36... Qc5+ {[%clk
0:00:19.5]} 37. Kf1 {[%clk 0:00:06.7]} 37... f3 {[%clk 0:00:18.7]} 38. Qb2+
{[%clk 0:00:06.4]} 1-0

[Event "*** SCC Grand Prix: Titled Tuesday Blitz"]
[Site "Chess.com"]
[Date "2020.06.02"]
[Round "8"]
[White "NefeLV"]
[Black "dosto07"]
[Result "0-1"]
[WhiteElo "1768"]
[BlackElo "2074"]
[TimeControl "180+1"]
[EndTime "11:36:52 PDT"]
[Termination "dosto07 won on time"]

1. c4 {[%clk 0:03:00.9]} 1... e5 {[%clk 0:02:58.7]} 2. Nc3 {[%clk 0:03:00.2]}
2... Nf6 {[%clk 0:02:58.6]} 3. g3 {[%clk 0:02:59.8]} 3... d5 {[%clk 0:02:58.3]}
4. cxd5 {[%clk 0:02:59]} 4... Nxd5 {[%clk 0:02:57]} 5. Bg2 {[%clk 0:02:59.5]}
5... Nb6 {[%clk 0:02:57.2]} 6. Nf3 {[%clk 0:02:58.1]} 6... Nc6 {[%clk
0:02:57.3]} 7. O-O {[%clk 0:02:55.2]} 7... Be7 {[%clk 0:02:57.4]} 8. d3 {[%clk
0:02:53.2]} 8... O-O {[%clk 0:02:57.1]} 9. Bd2 {[%clk 0:02:48.6]} 9... Re8
{[%clk 0:02:56]} 10. Rc1 {[%clk 0:02:47.4]} 10... Bf8 {[%clk 0:02:54.3]} 11. Ne4
{[%clk 0:02:38.8]} 11... Bg4 {[%clk 0:02:47.4]} 12. Nc5 {[%clk 0:02:35.9]} 12...
Bxc5 {[%clk 0:02:41.9]} 13. Rxc5 {[%clk 0:02:36.8]} 13... Qd7 {[%clk 0:02:37.6]}
14. Ng5 {[%clk 0:02:27.4]} 14... Nd4 {[%clk 0:02:24.5]} 15. f3 {[%clk
0:02:08.5]} 15... Bf5 {[%clk 0:02:07.5]} 16. e4 {[%clk 0:02:05.5]} 16... Bg6
{[%clk 0:01:51.2]} 17. f4 {[%clk 0:02:01.8]} 17... f6 {[%clk 0:01:43.6]} 18. Nh3
{[%clk 0:01:55.6]} 18... c6 {[%clk 0:01:38.5]} 19. fxe5 {[%clk 0:01:52.3]} 19...
Rxe5 {[%clk 0:01:15.5]} 20. Rxe5 {[%clk 0:01:42.3]} 20... fxe5 {[%clk
0:01:15.2]} 21. Ng5 {[%clk 0:01:43.2]} 21... h6 {[%clk 0:01:10.9]} 22. Bh3
{[%clk 0:01:42.4]} 22... Qd6 {[%clk 0:01:05.9]} 23. Nf3 {[%clk 0:01:30.3]} 23...
Rd8 {[%clk 0:01:03.3]} 24. a3 {[%clk 0:01:21.9]} 24... Bh5 {[%clk 0:01:00.4]}
25. g4 {[%clk 0:01:21.2]} 25... Bf7 {[%clk 0:00:54.3]} 26. Bb4 {[%clk
0:01:16.9]} 26... c5 {[%clk 0:00:52.9]} 27. Bc3 {[%clk 0:01:16.2]} 27... Bb3
{[%clk 0:00:47.3]} 28. Qd2 {[%clk 0:01:11.1]} 28... Rf8 {[%clk 0:00:44.7]} 29.
Nh4 {[%clk 0:01:03.2]} 29... Rxf1+ {[%clk 0:00:43.3]} 30. Bxf1 {[%clk
0:01:02.9]} 30... Qf6 {[%clk 0:00:40.5]} 31. Bxd4 {[%clk 0:00:59.7]} 31... exd4
{[%clk 0:00:32.6]} 32. Nf5 {[%clk 0:00:56.4]} 32... Nd7 {[%clk 0:00:31.4]} 33.
Qf4 {[%clk 0:00:49.9]} 33... Qe5 {[%clk 0:00:22.9]} 34. Qf3 {[%clk 0:00:41.4]}
34... Nf6 {[%clk 0:00:19.7]} 35. h4 {[%clk 0:00:38.4]} 35... Be6 {[%clk
0:00:18]} 36. Bh3 {[%clk 0:00:31.2]} 36... b5 {[%clk 0:00:17.6]} 37. g5 {[%clk
0:00:28]} 37... hxg5 {[%clk 0:00:17.7]} 38. hxg5 {[%clk 0:00:28.2]} 38... Nd7
{[%clk 0:00:17.4]} 39. Qh5 {[%clk 0:00:20.9]} 39... Nf8 {[%clk 0:00:13.4]} 40.
g6 {[%clk 0:00:07.4]} 40... Qf6 {[%clk 0:00:12.1]} 41. Kh2 {[%clk 0:00:01.8]}
41... Bxf5 {[%clk 0:00:12.1]} 0-1

[Event "*** SCC Grand Prix: Titled Tuesday Blitz"]
[Site "Chess.com"]
[Date "2020.06.02"]
[Round "8"]
[White "Baby_Shak"]
[Black "Cocaino74"]
[Result "0-1"]
[WhiteElo "2586"]
[BlackElo "2319"]
[TimeControl "180+1"]
[EndTime "11:36:53 PDT"]
[Termination "Cocaino74 won on time"]

1. d4 {[%clk 0:03:00.9]} 1... d5 {[%clk 0:02:57.6]} 2. Bf4 {[%clk 0:03:01.2]}
2... c5 {[%clk 0:02:56.7]} 3. e3 {[%clk 0:03:01.4]} 3... Nc6 {[%clk 0:02:56.6]}
4. c3 {[%clk 0:03:01.7]} 4... Nf6 {[%clk 0:02:52.3]} 5. Nd2 {[%clk 0:03:01.5]}
5... Bf5 {[%clk 0:02:50.7]} 6. Qa4 {[%clk 0:02:59.7]} 6... cxd4 {[%clk
0:02:42.8]} 7. exd4 {[%clk 0:03:00.6]} 7... g6 {[%clk 0:02:34.6]} 8. Ngf3 {[%clk
0:02:56.1]} 8... Ne4 {[%clk 0:02:19.5]} 9. Ne5 {[%clk 0:02:49.8]} 9... Nxd2
{[%clk 0:02:16.9]} 10. Nxc6 {[%clk 0:02:24.1]} 10... bxc6 {[%clk 0:02:14.6]} 11.
Bxd2 {[%clk 0:02:13.5]} 11... Qd7 {[%clk 0:02:00.6]} 12. Be2 {[%clk 0:02:10.1]}
12... Bg7 {[%clk 0:01:58]} 13. O-O {[%clk 0:02:09.4]} 13... O-O {[%clk
0:01:57.9]} 14. Bf4 {[%clk 0:02:09.9]} 14... f6 {[%clk 0:01:49.9]} 15. Rad1
{[%clk 0:01:44.5]} 15... e5 {[%clk 0:01:48.7]} 16. dxe5 {[%clk 0:01:36.6]} 16...
fxe5 {[%clk 0:01:49.6]} 17. Be3 {[%clk 0:01:35.8]} 17... Qb7 {[%clk 0:01:17.2]}
18. Rd2 {[%clk 0:01:32.6]} 18... Be6 {[%clk 0:00:54.8]} 19. Qh4 {[%clk 0:01:08]}
19... Bf6 {[%clk 0:00:51.9]} 20. Bg5 {[%clk 0:01:05.4]} 20... Qg7 {[%clk
0:00:41.2]} 21. Bxf6 {[%clk 0:00:57.5]} 21... Rxf6 {[%clk 0:00:37]} 22. Bg4
{[%clk 0:00:54.4]} 22... Bf7 {[%clk 0:00:28.4]} 23. Qg3 {[%clk 0:00:48.2]} 23...
Rf4 {[%clk 0:00:27.9]} 24. Re2 {[%clk 0:00:40.2]} 24... g5 {[%clk 0:00:23.2]}
25. Bd7 {[%clk 0:00:34.6]} 25... Bh5 {[%clk 0:00:21.6]} 26. Rxe5 {[%clk
0:00:25.3]} 26... Qxe5 {[%clk 0:00:17.8]} 27. Bxc6 {[%clk 0:00:23]} 27... Raf8
{[%clk 0:00:12.3]} 28. Qd3 {[%clk 0:00:20.9]} 28... Bf7 {[%clk 0:00:10.5]} 29.
Qg3 {[%clk 0:00:15.7]} 29... Rf5 {[%clk 0:00:09.6]} 30. Bd7 {[%clk 0:00:14.4]}
30... Qxg3 {[%clk 0:00:08.2]} 31. hxg3 {[%clk 0:00:13.2]} 31... Re5 {[%clk
0:00:08.8]} 32. Bb5 {[%clk 0:00:09.5]} 32... Bg6 {[%clk 0:00:08.5]} 33. Rd1
{[%clk 0:00:07.2]} 33... Kg7 {[%clk 0:00:07.3]} 34. Rd2 {[%clk 0:00:04.3]} 34...
Rb8 {[%clk 0:00:06.9]} 35. a4 {[%clk 0:00:02.9]} 35... h5 {[%clk 0:00:07.4]} 36.
Kh2 {[%clk 0:00:01.5]} 36... Kf6 {[%clk 0:00:07.9]} 0-1

[Event "*** SCC Grand Prix: Titled Tuesday Blitz"]
[Site "Chess.com"]
[Date "2020.06.02"]
[Round "8"]
[White "Klavdia_Nik"]
[Black "pitterson"]
[Result "0-1"]
[WhiteElo "2030"]
[BlackElo "2071"]
[TimeControl "180+1"]
[EndTime "11:36:53 PDT"]
[Termination "pitterson won on time"]

1. Nf3 {[%clk 0:03:00.9]} 1... d6 {[%clk 0:02:58.7]} 2. d4 {[%clk 0:03:00.2]}
2... Nd7 {[%clk 0:02:57.5]} 3. c4 {[%clk 0:02:57.9]} 3... Ngf6 {[%clk
0:02:55.4]} 4. Nc3 {[%clk 0:02:58]} 4... e5 {[%clk 0:02:54.9]} 5. e4 {[%clk
0:02:55.2]} 5... Be7 {[%clk 0:02:53.9]} 6. Be2 {[%clk 0:02:55.5]} 6... O-O
{[%clk 0:02:53.4]} 7. O-O {[%clk 0:02:55.9]} 7... c6 {[%clk 0:02:53.2]} 8. Re1
{[%clk 0:02:53.9]} 8... Qc7 {[%clk 0:02:53.1]} 9. Bf1 {[%clk 0:02:54.4]} 9...
Re8 {[%clk 0:02:52.3]} 10. b3 {[%clk 0:02:46.9]} 10... a6 {[%clk 0:02:50.5]} 11.
Bb2 {[%clk 0:02:46.8]} 11... b5 {[%clk 0:02:50.4]} 12. Rc1 {[%clk 0:02:35.4]}
12... Qb8 {[%clk 0:02:48.2]} 13. Qd2 {[%clk 0:02:22.5]} 13... Bf8 {[%clk
0:02:41.5]} 14. c5 {[%clk 0:02:12.7]} 14... dxc5 {[%clk 0:02:38.5]} 15. dxe5
{[%clk 0:02:10.9]} 15... Ng4 {[%clk 0:02:24.8]} 16. e6 {[%clk 0:01:58.1]} 16...
Rxe6 {[%clk 0:02:19.4]} 17. h3 {[%clk 0:01:48.5]} 17... Ngf6 {[%clk 0:02:08.7]}
18. Ng5 {[%clk 0:01:42.2]} 18... Re8 {[%clk 0:02:06.8]} 19. f4 {[%clk
0:01:40.3]} 19... h6 {[%clk 0:02:04.2]} 20. Nf3 {[%clk 0:01:40.5]} 20... Nh5
{[%clk 0:01:53.5]} 21. e5 {[%clk 0:01:39.7]} 21... c4 {[%clk 0:01:48.4]} 22. Ne4
{[%clk 0:01:22.8]} 22... Nc5 {[%clk 0:01:27.6]} 23. bxc4 {[%clk 0:01:02]} 23...
Nxe4 {[%clk 0:01:26.5]} 24. Rxe4 {[%clk 0:01:02.5]} 24... Ng3 {[%clk 0:01:25]}
25. Ree1 {[%clk 0:00:52.5]} 25... Nxf1 {[%clk 0:01:19.5]} 26. Rxf1 {[%clk
0:00:49.5]} 26... a5 {[%clk 0:01:16]} 27. c5 {[%clk 0:00:45]} 27... b4 {[%clk
0:01:13.5]} 28. Bd4 {[%clk 0:00:39.5]} 28... Ba6 {[%clk 0:01:08.9]} 29. Rfe1
{[%clk 0:00:38]} 29... Qb5 {[%clk 0:01:06.2]} 30. Qf2 {[%clk 0:00:30.5]} 30...
Rad8 {[%clk 0:01:04.7]} 31. Kh2 {[%clk 0:00:26.2]} 31... Rd5 {[%clk 0:01:03.6]}
32. Be3 {[%clk 0:00:22]} 32... Red8 {[%clk 0:01:01.5]} 33. Nh4 {[%clk
0:00:16.6]} 33... a4 {[%clk 0:00:50.9]} 34. Nf5 {[%clk 0:00:16.1]} 34... b3
{[%clk 0:00:48]} 35. axb3 {[%clk 0:00:15.2]} 35... axb3 {[%clk 0:00:47.1]} 36.
Nd6 {[%clk 0:00:15.4]} 36... Bxd6 {[%clk 0:00:38.9]} 37. exd6 {[%clk 0:00:10.8]}
37... b2 {[%clk 0:00:28.7]} 38. Rb1 {[%clk 0:00:10.2]} 38... Re8 {[%clk
0:00:21.5]} 39. Bd4 {[%clk 0:00:01.9]} 39... Qd3 {[%clk 0:00:19.7]} 0-1